bitfinex-derivatives/quotes_BTCF0:USTF0_20241029
["timestamp","ask_amount","ask_price","bid_price","bid_amount"]
[1730212473147,0.069638,71832.0,71831.0,0.069639]
[1730212474941,0.3608,71836.0,71827.0,0.3617]
[1730212475147,0.069642,71829.0,71828.0,0.069641]
[1730212475750,0.069542,71829.0,71828.0,0.069641]
[1730212477842,0.09141641,71829.0,71828.0,0.069641]
[1730212478549,0.069642,71828.0,71827.0,0.3607]
[1730212479249,0.02187441,71829.0,71828.0,0.069642]
[1730212479554,0.06964,71831.0,71830.0,0.06964]
[1730212479754,0.069636,71834.0,71832.0,0.069637]
[1730212479947,0.12466148,71833.0,71832.0,0.069637]
[1730212481138,0.069641,71830.0,71829.0,0.06964]
[1730212481367,0.069642,71828.0,71827.0,0.430343]
[1730212481547,0.12466648,71828.0,71827.0,0.430343]
[1730212481759,0.06965,71819.0,71818.0,0.00104]
[1730212481942,0.069655,71814.0,71809.0,0.3608]
[1730212482246,0.069666,71806.0,71805.0,0.069664]
[1730212482456,0.32052161,71806.0,71805.0,0.069664]
[1730212482946,0.11628746,71806.0,71805.0,0.069664]
[1730212483146,0.05507189,71806.0,71805.0,0.069664]
[1730212483747,0.05507189,71806.0,71805.0,0.083664]
[1730212483953,0.12473489,71806.0,71805.0,0.083664]
[1730212484147,0.12473489,71806.0,71805.0,0.014]
[1730212484653,0.12473489,71806.0,71805.0,0.028]
[1730212484654,0.38672519,71806.0,71805.0,0.028]
[1730212485050,0.74752519,71806.0,71805.0,0.028]
[1730212485549,0.76919842,71806.0,71805.0,0.028]
[1730212485952,0.65290858,71806.0,71805.0,0.028]
[1730212486256,0.65290858,71806.0,71805.0,0.023]
[1730212486450,0.65290858,71806.0,71787.0,0.02360936]
[1730212486451,0.069677,71791.0,71790.0,0.069678]
[1730212486653,0.069677,71791.0,71787.0,0.00208947]
[1730212486654,0.06968,71788.0,71787.0,0.00208947]
[1730212486846,0.27045235,71788.0,71787.0,0.00208947]
[1730212488459,0.20077235,71788.0,71780.0,0.02199086]
[1730212488644,0.069687,71781.0,71780.0,0.069688]
[1730212489350,0.069587,71781.0,71780.0,0.069688]
[1730212489553,0.069693,71777.0,71776.0,0.069692]
[1730212489752,0.001,71781.0,71780.0,0.008]
[1730212490046,0.001,71781.0,71780.0,0.077688]
[1730212490248,0.3608,71792.0,71780.0,0.077688]
[1730212490249,0.001,71788.0,71787.0,0.069681]
[1730212490449,0.001,71788.0,71787.0,0.63125335]
[1730212491051,0.00209013,71799.0,71787.0,0.63125335]
[1730212491251,0.069672,71797.0,71796.0,0.069672]
[1730212492373,0.00209013,71799.0,71798.0,0.069671]
[1730212492555,0.00209013,71799.0,71798.0,0.430471]
[1730212493455,0.3608,71809.0,71808.0,0.069661]
[1730212493756,0.069665,71805.0,71804.0,0.069665]
[1730212494155,0.069665,71805.0,71798.0,0.3618]
[1730212494156,0.20077235,71806.0,71798.0,0.3628]
[1730212494454,0.3608,71809.0,71798.0,0.002]
[1730212494455,0.27044235,71799.0,71798.0,0.002]
[1730212494855,0.06967,71799.0,71798.0,0.071671]
[1730212495250,0.069666,71803.0,71798.0,0.3628]
[1730212495462,0.069666,71803.0,71802.0,0.069667]
[1730212496061,0.069662,71808.0,71807.0,0.069662]
[1730212496658,0.069666,71804.0,71803.0,0.069665]
[1730212497256,0.069666,71804.0,71802.0,0.001]
[1730212497257,0.069663,71807.0,71806.0,0.069662]
[1730212497655,0.009,71808.0,71807.0,0.069662]
[1730212497964,0.009,71808.0,71807.0,0.430462]
[1730212498263,0.27443335,71808.0,71807.0,0.3608]
[1730212499263,0.069661,71808.0,71807.0,0.3608]
[1730212500457,0.069669,71802.0,71799.0,0.0887]
[1730212500653,0.27044135,71802.0,71801.0,0.069668]
[1730212500855,0.069675,71794.0,71793.0,0.001]
[1730212501051,0.069677,71791.0,71790.0,0.162178]
[1730212501259,0.069677,71791.0,71790.0,0.161178]
[1730212501760,0.069674,71795.0,71794.0,0.069673]
[1730212501962,0.069677,71791.0,71790.0,0.0915]
[1730212502162,0.06968,71788.0,71787.0,0.3608]
[1730212502461,0.06968,71788.0,71787.0,0.430481]
[1730212502666,0.06968,71788.0,71781.0,0.0717766]
[1730212502863,0.069586,71782.0,71781.0,0.0717766]
[1730212503769,0.069586,71782.0,71781.0,0.0020896]
[1730212503968,0.069586,71782.0,71781.0,0.0857766]
[1730212504163,0.002,71788.0,71781.0,0.0160896]
[1730212504462,0.07068,71788.0,71786.0,0.069681]
[1730212504676,0.001,71788.0,71786.0,0.069681]
[1730212504969,0.069681,71787.0,71786.0,0.069681]
[1730212505463,0.069681,71787.0,71781.0,0.0290896]
[1730212505659,0.3608,71784.0,71781.0,0.0150896]
[1730212505862,0.001,71782.0,71781.0,0.0290896]
[1730212506063,0.070686,71782.0,71781.0,0.0290896]
[1730212506263,0.069686,71782.0,71781.0,0.0847766]
[1730212506454,0.069686,71782.0,71781.0,0.0150896]
[1730212506660,0.069686,71782.0,71781.0,0.0847766]
[1730212506661,0.20357346,71782.0,71781.0,0.0847766]
[1730212507168,0.20457346,71782.0,71781.0,0.0987766]
[1730212507377,0.20457346,71782.0,71781.0,0.0857766]
[1730212507669,0.20457346,71782.0,71781.0,0.0987766]
[1730212508062,0.20457346,71782.0,71781.0,0.0290896]
[1730212509267,0.22674503,71782.0,71781.0,0.0987766]
[1730212509465,0.22674503,71782.0,71781.0,0.0857766]
[1730212509668,0.22774503,71782.0,71781.0,0.0987766]
[1730212510163,0.002,71782.0,71781.0,0.0987766]
[1730212510567,0.002,71782.0,71781.0,0.0847766]
[1730212510568,0.001,71782.0,71781.0,0.0847766]
[1730212510761,0.002,71782.0,71781.0,0.0987766]
[1730212511165,0.001,71782.0,71781.0,0.0907766]
[1730212512074,0.3608,71798.0,71781.0,0.4250096]
[1730212512268,0.069674,71795.0,71794.0,0.069672]
[1730212513562,0.20356146,71795.0,71794.0,0.069672]
[1730212513967,0.20356146,71795.0,71791.0,0.069677]
[1730212513968,0.069679,71792.0,71791.0,0.069677]
[1730212514161,0.50244746,71795.0,71788.0,0.0859]
[1730212514473,0.21056146,71795.0,71794.0,0.069675]
[1730212515066,0.21656146,71795.0,71794.0,0.069675]
[1730212515470,0.14688746,71795.0,71794.0,0.069675]
[1730212515864,0.14688746,71795.0,71790.0,0.069678]
[1730212515865,0.13988746,71795.0,71790.0,0.069678]
[1730212516065,0.13988746,71795.0,71791.0,0.069675]
[1730212516066,0.069677,71792.0,71791.0,0.069675]
[1730212516767,0.14688746,71795.0,71794.0,0.069675]
[1730212517365,0.13988746,71795.0,71790.0,0.069678]
[1730212517677,0.13388746,71791.0,71790.0,0.069678]
[1730212517862,0.004,71792.0,71791.0,0.069677]
[1730212518060,0.073676,71792.0,71791.0,0.069677]
[1730212518259,0.076676,71792.0,71791.0,0.069677]
[1730212518871,0.004,71792.0,71791.0,0.069677]
[1730212519464,0.003,71792.0,71791.0,0.069677]
[1730212520569,0.3608,71801.0,71791.0,0.77868]
[1730212520770,0.00208981,71804.0,71803.0,0.069666]
[1730212521563,0.00208981,71804.0,71803.0,0.430466]
[1730212521763,0.069654,71816.0,71815.0,0.069653]
[1730212521972,0.3608,71818.0,71817.0,0.069652]
[1730212521973,0.430451,71818.0,71817.0,0.069652]
[1730212522977,0.56433846,71818.0,71817.0,0.069652]
[1730212523473,0.069654,71816.0,71815.0,0.069653]
[1730212523972,0.51440746,71818.0,71817.0,0.069652]
[1730212524269,0.3798,71818.0,71817.0,0.069652]
[1730212524471,0.449451,71818.0,71817.0,0.069652]
[1730212524870,0.3798,71818.0,71817.0,0.069652]
[1730212525070,0.3608,71818.0,71817.0,0.069652]
[1730212525271,0.3658,71818.0,71817.0,0.070652]
[1730212525774,0.005,71818.0,71817.0,0.20453946]
[1730212526469,0.005,71818.0,71817.0,0.62225946]
[1730212526867,0.008,71818.0,71817.0,0.62325946]
[1730212527178,0.00208914,71827.0,71817.0,0.62325946]
[1730212527179,0.00208914,71827.0,71826.0,0.069644]
[1730212527368,0.00208914,71827.0,71826.0,0.430444]
[1730212528275,0.00208914,71827.0,71826.0,0.069644]
[1730212529074,0.00408914,71827.0,71826.0,0.069644]
[1730212529676,0.00608914,71827.0,71826.0,0.069644]
[1730212529881,0.00608914,71827.0,71822.0,0.3608]
[1730212530184,0.069645,71825.0,71824.0,0.069645]
[1730212530372,0.00608914,71827.0,71826.0,0.069644]
[1730212530980,0.07573214,71827.0,71826.0,0.069644]
[1730212531287,0.07173214,71827.0,71826.0,0.069644]
[1730212531482,0.07173214,71827.0,71822.0,0.49468746]
[1730212531483,0.069646,71824.0,71823.0,0.069645]
[1730212531875,0.06965,71819.0,71818.0,0.0887]
[1730212532076,0.13388746,71823.0,71818.0,0.0887]
[1730212532277,0.20353446,71823.0,71822.0,0.069647]
[1730212533079,0.069647,71823.0,71822.0,0.069647]
[1730212533781,0.069647,71823.0,71822.0,0.431447]
[1730212533985,0.20353446,71823.0,71822.0,0.001]
[1730212534684,0.20353446,71823.0,71822.0,0.004]
[1730212536181,0.56433446,71823.0,71822.0,0.004]
[1730212536377,0.58625668,71823.0,71822.0,0.004]
[1730212536885,1.00393668,71823.0,71822.0,0.004]
[1730212537188,0.069657,71812.0,71810.0,0.069659]
[1730212537687,0.069657,71812.0,71806.0,0.430462]
[1730212537881,0.069657,71812.0,71800.0,0.13388746]
[1730212538079,0.13388746,71814.0,71805.0,0.3608]
[1730212538284,0.069665,71806.0,71805.0,0.069662]
[1730212538685,0.430461,71810.0,71809.0,0.069658]
[1730212538980,0.069661,71810.0,71809.0,0.069658]
[1730212540173,0.13388746,71825.0,71808.0,0.13388746]
[1730212540377,0.06965,71821.0,71820.0,0.069649]
[1730212540889,0.069654,71817.0,71816.0,0.06965]
[1730212541287,0.069649,71821.0,71820.0,0.069648]
[1730212541483,0.38336458,71823.0,71813.0,0.0939]
[1730212541686,0.069654,71817.0,71816.0,0.069653]
[1730212542486,0.069654,71817.0,71816.0,0.077653]
[1730212543781,0.069654,71817.0,71816.0,0.084653]
[1730212544085,0.069654,71817.0,71816.0,0.015]
[1730212544485,0.430454,71817.0,71816.0,0.015]
[1730212548591,0.48354653,71817.0,71816.0,0.015]
[1730212548784,0.430454,71817.0,71816.0,0.015]
[1730212548988,0.48354235,71817.0,71816.0,0.015]
[1730212549501,0.069664,71805.0,71804.0,0.00208897]
[1730212549688,0.069664,71805.0,71800.0,0.1]
[1730212549689,0.069668,71801.0,71800.0,0.1]
[1730212549889,0.25598178,71801.0,71800.0,0.1]
[1730212550384,0.67382178,71801.0,71800.0,0.1]
[1730212550589,0.67382178,71801.0,71782.0,0.430486]
[1730212550791,0.20357246,71783.0,71782.0,0.3608]
[1730212550992,0.069686,71782.0,71781.0,0.0020896]
[1730212552293,0.069686,71782.0,71781.0,0.0090896]
[1730212552796,0.069686,71782.0,71781.0,0.0150896]
[1730212553498,0.0911981,71782.0,71781.0,0.0150896]
[1730212553699,0.0921981,71782.0,71781.0,0.0140896]
[1730212553903,0.069703,71769.0,71768.0,0.0697]
[1730212555402,0.070703,71769.0,71768.0,0.0787]
[1730212555600,0.431503,71769.0,71768.0,0.009]
[1730212555802,0.431503,71769.0,71768.0,0.019]
[1730212555803,0.56639046,71769.0,71768.0,0.019]
[1730212556098,0.432503,71769.0,71768.0,0.019]
[1730212556597,0.432503,71769.0,71750.0,0.0944]
[1730212556598,0.069713,71754.0,71750.0,0.0944]
[1730212556798,0.20360046,71754.0,71750.0,0.0944]
[1730212557900,0.56440046,71754.0,71750.0,0.0944]
[1730212558093,0.56440046,71754.0,71753.0,0.00709023]
[1730212558290,0.58684175,71754.0,71753.0,0.00709023]
[1730212559601,0.58684175,71754.0,71753.0,0.00209023]
[1730212560506,0.069718,71751.0,71750.0,0.069717]
[1730212560895,0.49540746,71754.0,71746.0,0.0916]
[1730212561102,0.069714,71754.0,71749.0,0.46440146]
[1730212561601,0.069714,71754.0,71749.0,0.10360146]
[1730212561804,0.069714,71754.0,71753.0,0.069714]
[1730212562308,0.069717,71750.0,71749.0,0.069718]
[1730212563607,0.070717,71750.0,71749.0,0.071718]
[1730212563806,0.071717,71750.0,71749.0,0.071718]
[1730212564795,0.13388746,71767.0,71749.0,0.56640546]
[1730212565001,0.3608,71773.0,71769.0,0.069699]
[1730212565296,0.069687,71782.0,71781.0,0.069686]
[1730212565499,0.069688,71780.0,71775.0,0.3608]
[1730212565707,0.069688,71780.0,71779.0,0.069689]
[1730212565911,0.069684,71784.0,71783.0,0.069683]
[1730212566114,0.069682,71787.0,71786.0,0.069682]
[1730212566306,0.13388746,71793.0,71783.0,0.13388746]
[1730212566505,0.069678,71791.0,71790.0,0.069677]
[1730212566807,0.3608,71801.0,71790.0,0.13388746]
[1730212567012,0.069672,71797.0,71796.0,0.069672]
[1730212567205,0.069671,71798.0,71794.0,0.069675]
[1730212567403,0.069675,71795.0,71794.0,0.069675]
[1730212567601,0.069675,71795.0,71788.0,0.3608]
[1730212567602,0.069678,71790.0,71788.0,0.3608]
[1730212567809,0.069678,71790.0,71753.0,0.05505371]
[1730212567810,0.069686,71782.0,71779.0,0.162889]
[1730212568002,0.13388746,71784.0,71781.0,0.069687]
[1730212568210,0.069687,71782.0,71781.0,0.069687]
[1730212569215,0.012,71791.0,71781.0,0.3608]
[1730212569402,0.069681,71788.0,71787.0,0.069678]
[1730212570615,0.069681,71788.0,71787.0,0.071678]
[1730212571407,0.002,71791.0,71790.0,0.069678]
[1730212571910,0.069675,71795.0,71787.0,0.49768746]
[1730212572112,0.069675,71795.0,71794.0,0.069675]
[1730212572509,0.069675,71795.0,71794.0,0.430475]
[1730212573405,0.069675,71795.0,71794.0,0.069675]
[1730212573606,0.06968,71788.0,71787.0,0.3608]
[1730212573917,0.069679,71789.0,71788.0,0.069678]
[1730212575824,0.069679,71789.0,71788.0,0.070678]
[1730212576925,0.069679,71789.0,71788.0,0.001]
[1730212578016,0.62144646,71789.0,71788.0,0.001]
[1730212578329,0.20358446,71771.0,71770.0,0.00208981]
[1730212580010,0.20458446,71771.0,71770.0,0.00908981]
[1730212580212,0.20458446,71771.0,71770.0,0.007]
[1730212581020,0.070697,71771.0,71770.0,0.076698]
[1730212581224,0.002,71771.0,71770.0,0.082698]
[1730212582110,0.002,71771.0,71770.0,0.443498]
[1730212582423,0.02145642,71778.0,71777.0,0.069691]
[1730212582614,0.02145642,71778.0,71777.0,0.56437846]
[1730212582919,0.02145642,71778.0,71777.0,0.98233846]
[1730212583111,0.00209042,71787.0,71786.0,0.069682]
[1730212583519,0.00209042,71787.0,71786.0,0.430482]
[1730212583715,0.02163746,71796.0,71786.0,1.04896746]
[1730212583924,0.02163746,71796.0,71795.0,0.56436146]
[1730212584123,0.069666,71803.0,71802.0,0.069667]
[1730212585122,0.39104,71833.0,71808.0,0.069659]
[1730212585123,0.06966,71809.0,71808.0,0.069659]
[1730212586215,0.08166,71809.0,71808.0,0.070659]
[1730212586622,0.09366,71809.0,71808.0,0.071659]
[1730212587627,0.09366,71809.0,71808.0,0.002]
[1730212588018,0.09366,71809.0,71808.0,0.071661]
[1730212588418,0.08566,71809.0,71808.0,0.069661]
[1730212588722,0.07666,71809.0,71808.0,0.069661]
[1730212588920,0.069664,71805.0,71795.0,0.45223981]
[1730212589123,0.06967,71799.0,71798.0,0.06967]
[1730212589626,0.06967,71799.0,71792.0,0.0855]
[1730212589627,0.20073521,71799.0,71794.0,0.069674]
[1730212589828,0.069674,71795.0,71794.0,0.069674]
[1730212590020,0.20073521,71799.0,71798.0,0.06967]
[1730212590021,0.069671,71799.0,71798.0,0.06967]
[1730212591816,0.070671,71799.0,71798.0,0.06967]
[1730212592222,0.071671,71799.0,71798.0,0.06967]
[1730212592522,0.071671,71799.0,71798.0,0.07667]
[1730212592931,0.070671,71799.0,71798.0,0.07667]
[1730212593131,0.001,71799.0,71798.0,0.44247]
[1730212596027,0.001,71799.0,71798.0,0.64320521]
[1730212596634,0.001,71799.0,71798.0,0.57879]
[1730212597534,0.001,71799.0,71798.0,0.77952521]
[1730212599530,0.001,71799.0,71798.0,0.64320521]
[1730212599729,0.001,71799.0,71798.0,0.57879]
[1730212600325,0.07067,71799.0,71798.0,0.44247]
[1730212600935,0.001,71799.0,71798.0,0.44247]
[1730212601938,0.001,71799.0,71798.0,0.64320521]
[1730212606537,0.001,71799.0,71798.0,0.44247]
[1730212606943,0.07067,71799.0,71798.0,0.44247]
[1730212610438,0.07067,71799.0,71798.0,0.08167]
[1730212610637,0.20449938,71799.0,71798.0,0.012]
[1730212611229,0.25766104,71799.0,71798.0,0.012]
[1730212611442,0.06968,71788.0,71787.0,0.00208937]
[1730212611642,0.20350938,71788.0,71787.0,0.00208937]
[1730212611838,0.06968,71788.0,71787.0,0.00208937]
[1730212612040,0.06968,71788.0,71787.0,0.07177037]
[1730212612543,0.07168,71788.0,71787.0,0.09577037]
[1730212614833,0.07168,71788.0,71787.0,0.02608937]
[1730212615637,0.20550938,71788.0,71787.0,0.02608937]
[1730212616147,0.07168,71788.0,71787.0,0.09577037]
[1730212616939,0.07168,71788.0,71787.0,0.02608937]
[1730212617942,0.20550938,71788.0,71787.0,0.02608937]
[1730212621445,0.20550938,71788.0,71787.0,0.22959975]
[1730212621446,0.002,71788.0,71787.0,0.22959975]
[1730212621648,0.08,71806.0,71787.0,0.57783875]
[1730212621943,0.430456,71813.0,71802.0,0.069667]
[1730212622148,0.02200074,71806.0,71802.0,0.069667]
[1730212622542,0.430456,71813.0,71802.0,0.069667]
[1730212622743,0.3608,71813.0,71809.0,0.06966]
[1730212622942,0.06966,71810.0,71809.0,0.06966]
[1730212623851,0.00072,71813.0,71812.0,0.069657]
[1730212624048,0.00072,71820.0,71813.0,0.069656]
[1730212624250,0.069649,71821.0,71819.0,0.13382938]
[1730212624548,0.069649,71821.0,71820.0,0.069649]
[1730212625842,0.069649,71821.0,71820.0,0.070649]
[1730212626245,0.069649,71821.0,71820.0,0.072649]
[1730212626547,0.20347838,71821.0,71820.0,0.003]
[1730212626741,0.069649,71821.0,71820.0,0.072649]
[1730212628365,0.00208937,71826.0,71820.0,0.3638]
[1730212628541,0.00208937,71826.0,71825.0,0.069644]
[1730212628941,0.07173337,71826.0,71825.0,0.069644]
[1730212629644,0.00208937,71826.0,71825.0,0.069644]
[1730212629839,0.00508937,71826.0,71825.0,0.069644]
[1730212631351,0.00808937,71826.0,71825.0,0.069644]
[1730212635543,0.07773337,71826.0,71825.0,0.069644]
[1730212635749,0.069647,71823.0,71822.0,0.069645]
[1730212635943,0.20347638,71823.0,71822.0,0.069645]
[1730212636158,0.06965,71820.0,71819.0,0.06965]
[1730212636852,0.069655,71814.0,71813.0,0.3608]
[1730212637049,0.069655,71814.0,71797.0,0.13382938]
[1730212637050,0.069658,71811.0,71805.0,0.069664]
[1730212637246,0.069658,71811.0,71797.0,0.13604]
[1730212637450,0.069658,71811.0,71802.0,0.069667]
[1730212637451,0.487418,71811.0,71802.0,0.069667]
[1730212637649,0.487418,71811.0,71796.0,0.13382938]
[1730212637849,0.487418,71811.0,71795.0,0.3608]
[1730212638150,0.487418,71811.0,71797.0,0.069671]
[1730212638351,0.488418,71811.0,71810.0,0.00708873]
[1730212638649,0.60242324,71811.0,71794.0,0.069674]
[1730212638850,0.069674,71795.0,71789.0,0.069679]
[1730212639057,0.13382938,71790.0,71787.0,0.00208937]
[1730212639244,0.06968,71788.0,71787.0,0.00208937]
[1730212640755,0.06968,71788.0,71787.0,0.07177037]
[1730212641660,0.06968,71788.0,71787.0,0.00208937]
[1730212641960,0.07068,71788.0,71787.0,0.00708937]
[1730212643656,0.06968,71788.0,71787.0,0.00708937]
[1730212643856,0.4886,71788.0,71787.0,0.005]
[1730212644259,0.4876,71788.0,71774.0,0.3608]
[1730212644455,0.069692,71776.0,71774.0,0.3608]
[1730212646059,0.069692,71776.0,71774.0,0.3748]
[1730212646364,0.069693,71775.0,71774.0,0.014]
[1730212647460,0.20352238,71775.0,71774.0,0.014]
[1730212647763,0.0697,71768.0,71766.0,0.0762]
[1730212648151,0.069697,71771.0,71770.0,0.069698]
[1730212648351,0.0697,71768.0,71766.0,0.0762]
[1730212648660,0.0697,71768.0,71766.0,0.09829344]
[1730212648859,0.0697,71768.0,71767.0,0.069701]
[1730212649161,0.0707,71768.0,71767.0,0.069701]
[1730212649562,0.001,71768.0,71767.0,0.069701]
[1730212649858,0.001,71768.0,71767.0,0.20353038]
[1730212650265,0.069687,71781.0,71767.0,0.62153038]
[1730212650563,0.069687,71781.0,71766.0,0.11229344]
[1730212650564,0.069686,71782.0,71775.0,0.13382938]
[1730212650764,0.069688,71780.0,71776.0,0.069691]
[1730212650958,0.069688,71780.0,71779.0,0.069689]
[1730212651157,0.02401628,71788.0,71779.0,0.13382938]
[1730212651355,0.069686,71782.0,71779.0,0.13382938]
[1730212651553,0.069686,71782.0,71778.0,0.3608]
[1730212651554,0.069685,71783.0,71778.0,0.3608]
[1730212651753,0.069685,71783.0,71782.0,0.069686]
[1730212652369,0.3608,71787.0,71780.0,0.069688]
[1730212652564,0.3608,71787.0,71778.0,0.38238613]
[1730212652565,0.16084566,71788.0,71781.0,0.069687]
[1730212652860,0.069688,71780.0,71778.0,0.38238613]
[1730212653062,0.069688,71780.0,71779.0,0.069689]
[1730212653452,0.069684,71784.0,71780.0,0.069687]
[1730212653657,0.069681,71787.0,71780.0,0.069687]
[1730212653858,0.069685,71783.0,71781.0,0.069687]
[1730212654069,0.069685,71783.0,71782.0,0.001]
[1730212654555,0.36361033,71788.0,71787.0,0.069681]
[1730212654760,0.36289033,71788.0,71787.0,0.20351038]
[1730212655166,0.36289033,71788.0,71787.0,0.069681]
[1730212655373,0.43257033,71788.0,71787.0,0.069681]
[1730212656074,0.069684,71784.0,71783.0,0.1539]
[1730212656368,0.069684,71784.0,71783.0,0.0769]
[1730212656668,0.069685,71783.0,71782.0,0.002]
[1730212656975,0.069695,71773.0,71772.0,0.00108]
[1730212657265,0.20352438,71773.0,71766.0,0.3608]
[1730212657457,0.069695,71773.0,71767.0,0.13382938]
[1730212657777,0.069697,71771.0,71770.0,0.069698]
[1730212658166,0.13382938,71776.0,71767.0,0.13382938]
[1730212658471,0.069691,71777.0,71776.0,0.069692]
[1730212658674,0.0835,71793.0,71775.0,0.13382938]
[1730212658871,0.0835,71793.0,71772.0,0.3608]
[1730212658872,0.069683,71785.0,71784.0,0.069684]
[1730212659259,0.00209033,71788.0,71783.0,0.29392938]
[1730212659460,0.00209033,71788.0,71783.0,0.36832938]
[1730212659763,0.069683,71785.0,71784.0,0.069684]
[1730212660574,0.13382938,71787.0,71783.0,0.1601]
[1730212660776,0.069684,71784.0,71783.0,0.1601]
[1730212661181,0.069684,71784.0,71783.0,0.229785]
[1730212662683,0.00209033,71788.0,71783.0,0.29392938]
[1730212663174,0.07177033,71788.0,71787.0,0.069681]
[1730212664069,0.07177033,71788.0,71783.0,0.1611]
[1730212664070,0.069684,71785.0,71784.0,0.069684]
[1730212664376,0.07677033,71788.0,71787.0,0.069681]
[1730212664575,0.07477033,71788.0,71787.0,0.069681]
[1730212664771,0.07377033,71788.0,71787.0,0.069681]
[1730212664972,0.07677033,71788.0,71787.0,0.069681]
[1730212666269,0.07477033,71788.0,71787.0,0.069681]
[1730212666866,0.07477033,71788.0,71784.0,0.001]
[1730212666867,0.069683,71785.0,71784.0,0.001]
[1730212667171,0.069683,71785.0,71783.0,0.1601]
[1730212667773,0.069683,71785.0,71784.0,0.069684]
[1730212668167,0.00709033,71788.0,71784.0,0.069684]
[1730212668168,0.005,71788.0,71787.0,0.069681]
[1730212668480,0.00208985,71810.0,71809.0,0.06966]
[1730212668693,0.00208985,71810.0,71809.0,0.70008938]
[1730212668980,0.02163694,71825.0,71809.0,0.63042938]
[1730212669283,0.02163694,71825.0,71819.0,0.06965]
[1730212669284,0.069651,71820.0,71819.0,0.06965]
[1730212670374,0.083651,71820.0,71819.0,0.06965]
[1730212671481,0.084651,71820.0,71819.0,0.07065]
[1730212672981,0.084651,71820.0,71819.0,0.001]
[1730212673179,0.28534467,71820.0,71819.0,0.001]
[1730212674182,0.015,71820.0,71819.0,0.07065]
[1730212674378,0.084649,71820.0,71819.0,0.07065]
[1730212675080,0.015,71820.0,71819.0,0.07065]
[1730212675674,0.015,71820.0,71819.0,0.09258386]
[1730212676581,0.001,71820.0,71819.0,0.09558386]
[1730212676981,0.06964,71830.0,71826.0,0.069643]
[1730212677181,0.06964,71830.0,71827.0,0.069642]
[1730212677385,0.02231947,71835.0,71828.0,0.20069367]
[1730212677585,0.06963,71841.0,71836.0,0.069633]
[1730212677779,0.02407316,71838.0,71836.0,0.069633]
[1730212678085,0.02407316,71838.0,71837.0,0.069633]
[1730212678389,0.02198425,71838.0,71837.0,0.069633]
[1730212678589,0.069617,71853.0,71850.0,0.06962]
[1730212678789,0.069617,71853.0,71851.0,0.3608]
[1730212680080,0.083617,71853.0,71851.0,0.430419]
[1730212680277,0.014,71853.0,71852.0,0.68783167]
[1730212680683,0.014,71853.0,71852.0,0.82331167]
[1730212680684,0.015,71853.0,71852.0,0.82331167]
[1730212680881,0.015,71853.0,71852.0,0.27031167]
[1730212681088,0.015,71853.0,71852.0,0.40579167]
[1730212681788,0.3608,71872.0,71852.0,0.82331167]
[1730212682089,0.3608,71872.0,71864.0,0.069607]
[1730212682090,0.069605,71866.0,71864.0,0.069607]
[1730212682289,0.02347691,71871.0,71865.0,0.069605]
[1730212682482,0.02347691,71871.0,71861.0,0.069609]
[1730212682683,0.20069367,71868.0,71861.0,0.069609]
[1730212682980,0.069609,71862.0,71860.0,0.3608]
[1730212683184,0.06961,71861.0,71860.0,0.3608]
[1730212683382,0.20069367,71863.0,71848.0,0.13544]
[1730212683383,0.069614,71856.0,71848.0,0.13544]
[1730212683583,0.069615,71855.0,71852.0,0.071618]
[1730212683783,0.069615,71855.0,71852.0,0.070618]
[1730212684495,0.01608787,71871.0,71854.0,0.20069367]
[1730212684788,0.069606,71865.0,71863.0,0.20069367]
[1730212684981,0.069606,71865.0,71863.0,0.069607]
[1730212685178,0.01608787,71871.0,71861.0,0.3608]
[1730212685387,0.069607,71864.0,71861.0,0.3608]
[1730212685589,0.069603,71869.0,71865.0,0.069606]
[1730212685788,0.069601,71870.0,71863.0,0.069608]
[1730212685993,0.02364333,71871.0,71864.0,0.069606]
[1730212686292,0.006,71865.0,71864.0,0.069606]
[1730212686499,0.069607,71864.0,71863.0,0.001]
[1730212686989,0.02364333,71871.0,71863.0,0.001]
[1730212686990,0.069603,71868.0,71865.0,0.069605]
[1730212687188,0.00208787,71871.0,71870.0,0.069601]
[1730212688189,0.0787,71886.0,71867.0,0.56249367]
[1730212688388,0.069593,71878.0,71876.0,0.56149367]
[1730212688585,0.069584,71888.0,71876.0,0.56149367]
[1730212688785,0.3608,71890.0,71887.0,0.27027767]
[1730212688786,0.069582,71889.0,71887.0,0.27027767]
[1730212688991,0.3608,71890.0,71887.0,0.20069367]
[1730212689184,0.38218182,71890.0,71889.0,0.069582]
[1730212689384,0.069583,71889.0,71887.0,0.20069367]
[1730212689991,0.01,71888.0,71887.0,0.27027767]
[1730212690188,0.01,71888.0,71887.0,0.56149367]
[1730212690391,0.069587,71884.0,71883.0,0.3608]
[1730212690586,0.069587,71884.0,71872.0,0.3608]
[1730212690587,0.069595,71877.0,71874.0,0.069596]
[1730212690891,0.20069367,71878.0,71872.0,0.3608]
[1730212691207,0.069597,71875.0,71872.0,0.3608]
[1730212691393,0.20069367,71884.0,71872.0,0.3608]
[1730212691690,0.069598,71873.0,71872.0,0.3608]
[1730212692388,0.069598,71873.0,71865.0,0.1354]
[1730212692686,0.56149367,71880.0,71862.0,0.02225088]
[1730212692687,0.069607,71864.0,71862.0,0.02225088]
[1730212692879,0.069608,71863.0,71860.0,0.3608]
[1730212693086,0.069606,71866.0,71865.0,0.069605]
[1730212693285,0.069598,71873.0,71872.0,0.001]
[1730212694091,0.069607,71864.0,71863.0,0.20069367]
[1730212694681,0.069609,71862.0,71861.0,0.01608734]
[1730212694882,0.069609,71862.0,71861.0,0.00208734]
[1730212695583,0.069609,71862.0,71861.0,0.01608734]
[1730212695783,0.65264207,71862.0,71861.0,0.014]
[1730212696204,0.65264207,71862.0,71849.0,0.27031467]